fUSD/lending_fUSD_20240823
["ID","MTS","AMOUNT","RATE_DAILY","PERIOD"]
[335670135,1724409046550,-558.73,0.00010999,2]
[335670136,1724409046564,-558.73,0.00010999,2]
[335670137,1724409046573,-558.73,0.00010999,2]
[335670138,1724409046582,-558.73,0.00010999,2]
[335670139,1724409046591,-558.73,0.00010999,2]
[335670140,1724409046600,-558.73,0.00010999,2]
[335670141,1724409046609,-558.73,0.00010999,2]
[335670142,1724409046622,-558.73,0.00010999,2]
[335670143,1724409046631,-558.94600817,0.00010999,2]
[335670144,1724409046640,-781.0,0.00010999,2]
[335670145,1724409046650,-781.0,0.00010999,2]
[335670146,1724409046659,-781.0,0.00010999,2]
[335670147,1724409046669,-781.0,0.00010999,2]
[335670148,1724409046678,-781.0,0.00010999,2]
[335670149,1724409046687,-781.0,0.00010999,2]
[335670150,1724409046697,-781.0,0.00010999,2]
[335670151,1724409046706,-781.0,0.00010999,2]
[335670152,1724409046716,-735.41363496,0.00010999,2]
[335670153,1724409046729,-45.58636504,0.00010999,2]
[335670154,1724409046739,-781.0,0.00010999,2]
[335670155,1724409046748,-781.0,0.00010999,2]
[335670156,1724409046758,-781.0,0.00010999,2]
[335670157,1724409046767,-781.0,0.00010999,2]
[335670158,1724409046776,-781.0,0.00010999,2]
[335670159,1724409046785,-781.0,0.00010999,2]
[335670160,1724409046795,-781.0,0.00010999,2]
[335670161,1724409046804,-781.0,0.00010999,2]
[335670162,1724409046825,-781.0,0.00010999,2]
[335670163,1724409046834,-781.0,0.00010999,2]
[335670164,1724409046843,-781.0,0.00010999,2]
[335670165,1724409046853,-781.0,0.00010999,2]
[335670166,1724409046863,-781.0,0.00010999,2]
[335670167,1724409046872,-781.0,0.00010999,2]
[335670168,1724409046882,-781.06,0.00010999,2]
[335670169,1724409046891,-500.0,0.00010999,2]
[335670170,1724409046901,-500.0,0.00010999,2]
[335670171,1724409046910,-500.0,0.00010999,2]
[335670172,1724409046919,-500.0,0.00010999,2]
[335670173,1724409046929,-500.0,0.00010999,2]
[335670174,1724409046938,-500.0,0.00010999,2]
[335670175,1724409046947,-500.0,0.00010999,2]
[335670176,1724409046956,-573.42821308,0.00010999,2]
[335670177,1724409046965,-515.0,0.00010999,2]
[335670178,1724409046974,-515.0,0.00010999,2]
[335670179,1724409046984,-515.0,0.00010999,2]
[335670180,1724409046993,-515.0,0.00010999,2]
[335670181,1724409047003,-515.0,0.00010999,2]
[335670182,1724409047012,-515.0,0.00010999,2]
[335670183,1724409047021,-515.0,0.00010999,2]
[335670184,1724409047030,-515.0,0.00010999,2]
[335670185,1724409047040,-515.0,0.00010999,2]
[335670186,1724409047049,-515.0,0.00010999,2]
[335670187,1724409047058,-515.0,0.00010999,2]
[335670188,1724409047068,-515.0,0.00010999,2]
[335670189,1724409047077,-515.0,0.00010999,2]
[335670190,1724409047087,-515.0,0.00010999,2]
[335670191,1724409047096,-515.0,0.00010999,2]
[335670192,1724409047105,-515.0,0.00010999,2]
[335670193,1724409047115,-515.0,0.00010999,2]
[335670194,1724409047124,-515.0,0.00010999,2]
[335670195,1724409047133,-515.0,0.00010999,2]
[335670196,1724409047143,-34.66479736,0.00010999,2]
[335670197,1724409047156,-480.33520264,0.00010999,2]
[335670198,1724409047165,-515.0,0.00010999,2]
[335670199,1724409047175,-515.0,0.00010999,2]
[335670200,1724409047184,-515.0,0.00010999,2]
[335670201,1724409047193,-515.05,0.00010999,2]
[335670202,1724409047203,-500.0,0.00010999,2]
[335670203,1724409047212,-500.0,0.00010999,2]
[335670204,1724409047222,-251.50916568,0.00010999,2]
[335670205,1724409047231,-500.0,0.00010999,2]
[335670206,1724409047240,-500.0,0.00010999,2]
[335670207,1724409047249,-580.61196665,0.00010999,2]
[335670208,1724409047259,-500.0,0.00010999,2]
[335670209,1724409047268,-500.0,0.00010999,2]
[335670210,1724409047277,-610.14,0.00010999,2]
[335670211,1724409047287,-823.84,0.00010999,2]
[335670212,1724409047297,-823.84,0.00010999,2]
[335670213,1724409047308,-500.0,0.00010999,2]
[335670214,1724409047318,-500.0,0.00010999,2]
[335670215,1724409047327,-823.84,0.00010999,2]
[335670216,1724409047336,-500.0,0.00010999,2]
[335670217,1724409047346,-500.0,0.00010999,2]
[335670218,1724409047355,-823.84,0.00010999,2]
[335670219,1724409047364,-500.0,0.00010999,2]
[335670220,1724409047374,-823.84,0.00010999,2]
[335670221,1724409047383,-500.0,0.00010999,2]
[335670222,1724409047393,-823.84,0.00010999,2]
[335670223,1724409047402,-500.0,0.00010999,2]
[335670224,1724409047411,-823.84,0.00010999,2]
[335670225,1724409047421,-823.84,0.00010999,2]
[335670226,1724409047430,-606.46,0.00010999,2]
[335670227,1724409047439,-823.84,0.00010999,2]
[335670228,1724409047450,-823.84,0.00010999,2]
[335670229,1724409047461,-823.84,0.00010999,2]
[335670230,1724409047471,-823.84,0.00010999,2]
[335670231,1724409047480,-823.84,0.00010999,2]
[335670232,1724409047489,-823.84,0.00010999,2]
[335670233,1724409047499,-823.84,0.00010999,2]
[335670234,1724409047508,-823.84,0.00010999,2]
[335670235,1724409047517,-823.84,0.00010999,2]
[335670236,1724409047527,-823.84,0.00010999,2]
[335670237,1724409047537,-823.84,0.00010999,2]
[335670238,1724409047547,-823.84,0.00010999,2]
[335670239,1724409047559,-823.84,0.00010999,2]
[335670240,1724409047568,-823.84,0.00010999,2]
[335670241,1724409047577,-823.84,0.00010999,2]
[335670242,1724409047587,-823.96,0.00010999,2]
[335670243,1724409047597,-691.84,0.00010999,2]
[335670244,1724409047606,-691.84,0.00010999,2]
[335670245,1724409047615,-691.84,0.00010999,2]
[335670246,1724409047626,-691.84,0.00010999,2]
[335670247,1724409047635,-500.0,0.00010999,2]
[335670248,1724409047645,-691.84,0.00010999,2]
[335670249,1724409047654,-500.0,0.00010999,2]
[335670250,1724409047663,-691.84,0.00010999,2]
[335670251,1724409047672,-500.0,0.00010999,2]
[335670252,1724409047681,-691.84,0.00010999,2]
[335670253,1724409047691,-500.0,0.00010999,2]
[335670254,1724409047701,-691.84,0.00010999,2]
[335670255,1724409047710,-500.0,0.00010999,2]
[335670256,1724409047720,-691.84,0.00010999,2]
[335670257,1724409047729,-500.0,0.00010999,2]
[335670258,1724409047738,-691.84,0.00010999,2]
[335670259,1724409047747,-500.0,0.00010999,2]
[335670260,1724409047756,-691.84,0.00010999,2]
[335670261,1724409047766,-500.0,0.00010999,2]
[335670262,1724409047775,-691.84,0.00010999,2]
[335670263,1724409047785,-500.0,0.00010999,2]
[335670264,1724409047794,-691.84,0.00010999,2]
[335670265,1724409047804,-500.0,0.00010999,2]
[335670266,1724409047817,-691.84,0.00010999,2]
[335670267,1724409047826,-500.0,0.00010999,2]
[335670268,1724409047836,-500.0,0.00010999,2]
[335670269,1724409047845,-500.0,0.00010999,2]
[335670270,1724409047854,-691.84,0.00010999,2]
[335670271,1724409047864,-500.0,0.00010999,2]
[335670272,1724409047873,-691.84,0.00010999,2]
[335670273,1724409047883,-500.0,0.00010999,2]
[335670274,1724409047893,-691.84,0.00010999,2]
[335670275,1724409047903,-481.71,0.00010999,2]
[335670276,1724409047912,-691.84,0.00010999,2]
[335670277,1724409047922,-691.84,0.00010999,2]
[335670278,1724409047931,-691.84,0.00010999,2]
[335670279,1724409047942,-500.0,0.00010999,2]
[335670280,1724409047951,-691.84,0.00010999,2]
[335670281,1724409047961,-500.0,0.00010999,2]
[335670282,1724409047971,-691.84,0.00010999,2]
[335670283,1724409047982,-500.0,0.00010999,2]
[335670284,1724409047992,-691.84,0.00010999,2]
[335670285,1724409048002,-500.0,0.00010999,2]
[335670286,1724409048012,-691.89229284,0.00010999,2]
[335670287,1724409048021,-500.0,0.00010999,2]
[335670288,1724409048031,-500.0,0.00010999,2]
[335670289,1724409048039,-500.0,0.00010999,2]
[335670290,1724409048049,-500.0,0.00010999,2]
[335670291,1724409048061,-500.0,0.00010999,2]
[335670292,1724409048071,-500.0,0.00010999,2]
[335670293,1724409048080,-500.0,0.00010999,2]
[335670294,1724409048090,-500.0,0.00010999,2]
[335670295,1724409048100,-500.0,0.00010999,2]
[335670296,1724409048110,-500.0,0.00010999,2]
[335670297,1724409048120,-500.0,0.00010999,2]
[335670298,1724409048129,-500.0,0.00010999,2]
[335670299,1724409048138,-500.0,0.00010999,2]
[335670300,1724409048147,-341.48839007,0.00010999,2]
[335670301,1724409048157,-500.0,0.00010999,2]
[335670302,1724409048166,-500.0,0.00010999,2]
[335670303,1724409048176,-500.0,0.00010999,2]
[335670304,1724409048186,-500.0,0.00010999,2]
[335670305,1724409048195,-500.0,0.00010999,2]
[335670306,1724409048204,-500.0,0.00010999,2]
[335670307,1724409048214,-500.0,0.00010999,2]
[335670308,1724409048223,-498.47,0.00010999,2]
[335670309,1724409048232,-10007.57,0.00011,2]
[335670310,1724409048242,-32711.63494923,0.00011,2]
[335670311,1724409048259,-212421.57088599,0.00011,2]
[335670312,1724409048271,-6428.14664,0.00011,2]
[335670313,1724409048282,-317.13482024,0.00011,2]
[335670316,1724409070755,1000.0,0.00027,120]
[335670320,1724409149211,225.47,8.725e-05,2]
[335670321,1724409206162,1000.0,0.00026849,120]
[335670322,1724409206572,1000.0,0.00026849,120]
[335670323,1724409242386,500.0,0.00024932,120]
[335670324,1724409271866,200.0,0.00025483,120]
[335670330,1724409470820,500.0,0.00027,120]
[335670331,1724409477165,241.87,0.00027,120]
[335670332,1724409485535,156.39812584,0.00010009,2]
[335670333,1724409520162,500.0,0.00027,120]
[335670334,1724409526296,500.0,0.00027,120]
[335670335,1724409540810,500.0,0.00027,120]
[335670336,1724409543504,500.0,0.00027,120]
[335670338,1724409596378,253.32919331,0.00010009,2]
[335670339,1724409614255,1050.0,0.0001,2]
[335670340,1724409630194,509.64,0.00027,120]
[335670341,1724409636320,500.0,0.00027,120]
[335670342,1724409642451,500.0,0.00027,120]
[335670343,1724409644519,5000.0,0.0001001,2]
[335670344,1724409648627,500.0,0.00027,120]
[335670345,1724409671372,500.0,0.00027,120]
[335670346,1724409691390,214.19,8.219e-05,2]
[335670347,1724409748201,160.0,0.00010006,2]
[335670348,1724409804650,1000.0,0.00026849,120]
[335670349,1724409805134,1000.0,0.00026849,120]
[335670350,1724409840586,500.0,0.00024932,120]
[335670351,1724409862455,250.0,9.981e-05,2]
[335670352,1724409872104,200.0,0.00025935,120]
[335670360,1724410000756,2344.1674649,0.00010009,2]
[335670361,1724410023630,-213.03,0.00010021,2]
[335670367,1724410037197,357.91024172,0.00010097,2]
[335670400,1724410176326,203.48,8.219e-05,2]
[335670402,1724410189359,155.0,0.00010097,2]
[335670410,1724410231865,-781.99865427,0.0001029,2]
[335670411,1724410232010,-1512.11134573,0.0001029,2]
[335670412,1724410232020,-187.0,0.00010412,2]
[335670413,1724410232029,-68.62865427,0.00010471,2]
[335670414,1724410232040,-458.56874869,0.00010471,2]
[335670415,1724410232050,-203.48,0.00010478,2]
[335670416,1724410232062,-979.73832782,0.00010505,2]
[335670417,1724410232073,-872.0,0.00010572,2]
[335670418,1724410232085,-156.39812584,0.00010861,2]
[335670419,1724410232097,-150.0,0.00010889,2]
[335670420,1724410232108,-240.0,0.00010889,2]
[335670421,1724410232119,-300.0,0.00010889,2]
[335670422,1724410232131,-962.64311,0.0001089,2]
[335670423,1724410232143,-189.94,0.0001089,2]
[335670424,1724410232153,-6654.09597006,0.0001089,2]
[335670426,1724410232166,-6987.55159708,0.0001089,2]
[335670428,1724410232178,-4265.14243286,0.0001089,2]
[335670431,1724410232192,-499.99,0.0001089,2]
[335670432,1724410232202,-155.23007428,0.0001089,2]
[335670434,1724410232213,-253.32919331,0.0001089,2]
[335670436,1724410232224,-266.26829955,0.0001089,2]
[335670437,1724410232237,-62.45329747,0.0001089,2]
[335670438,1724410232248,-155.0,0.0001089,2]
[335670439,1724410232259,-531.49545144,0.0001089,2]
[335670440,1724410232270,-155.0,0.00010899,2]
[335670441,1724410232281,-568.19747299,0.000109,2]
[335670442,1724410232294,-1037.64531291,0.000109,2]
[335670443,1724410232305,-364.091493,0.000109,2]
[335670444,1724410232316,-500.0,0.00010912,2]
[335670445,1724410232328,-200.0,0.00010959,2]
[335670446,1724410232340,-3585.45474056,0.00010966,2]
[335670447,1724410232352,-361.36554768,0.00010966,2]
[335670448,1724410232365,-1853.17971176,0.00010966,2]
[335670449,1724410232375,-654.02028824,0.00010975,2]
[335670450,1724410232388,-939.2,0.00010975,2]
[335670451,1724410232401,-4206.77971176,0.00010975,2]
[335670452,1724410232411,-2214.00655441,0.00010979,2]
[335670453,1724410232443,-1000.37172,0.00010979,2]
[335670454,1724410232456,-619.65012665,0.00010979,2]
[335670459,1724410238004,-492.09101518,0.00010979,2]
[335670531,1724410240399,-2408.76417884,0.00010979,2]
[335670541,1724410243161,-10836.84640492,0.00010979,2]
[335670542,1724410243171,-5800.0,0.00010983,2]
[335670543,1724410243182,-500.0,0.00010989,2]
[335670544,1724410243192,-500.0,0.00010989,2]
[335670545,1724410243203,-500.0,0.00010989,2]
[335670546,1724410243214,-500.0,0.00010989,2]
[335670547,1724410243224,-151.4,0.0001099,2]
[335670548,1724410243235,-2020.93008178,0.00010992,2]
[335670549,1724410243248,-3779.06991822,0.00010992,2]
[335670550,1724410243258,-2218.7360904,0.00010997,2]
[335670551,1724410243269,-13439.9095268,0.00010997,2]
[335670552,1724410243279,-311.49,0.00010998,2]
[335670553,1724410243290,-500.0,0.00010998,2]
[335670554,1724410243302,-770.31570348,0.00010999,2]
[335670555,1724410243312,-2266.50092782,0.00010999,2]
[335670556,1724410243322,-500.0,0.00010999,2]
[335670557,1724410243333,-500.0,0.00010999,2]
[335670558,1724410243343,-500.0,0.00010999,2]
[335670559,1724410243354,-500.0,0.00010999,2]
[335670560,1724410243364,-500.0,0.00010999,2]
[335670561,1724410243375,-500.0,0.00010999,2]
[335670562,1724410243385,-463.44,0.00010999,2]
[335670563,1724410243395,-543.7,0.00010999,2]
[335670564,1724410243405,-500.0,0.00010999,2]
[335670565,1724410243416,-500.0,0.00010999,2]
[335670566,1724410243426,-383.73783328,0.00010999,2]
[335670567,1724410243438,-116.26216672,0.00010999,2]
[335670569,1724410243448,-500.0,0.00010999,2]
[335670571,1724410243459,-500.0,0.00010999,2]
[335670572,1724410243470,-500.0,0.00010999,2]
[335670573,1724410243480,-500.0,0.00010999,2]
[335670574,1724410243490,-500.0,0.00010999,2]
[335670575,1724410243501,-500.0,0.00010999,2]
[335670576,1724410243512,-500.0,0.00010999,2]
[335670577,1724410243522,-500.0,0.00010999,2]
[335670578,1724410243532,-500.0,0.00010999,2]
[335670579,1724410243542,-500.0,0.00010999,2]
[335670580,1724410243552,-500.0,0.00010999,2]
[335670581,1724410243563,-500.0,0.00010999,2]
[335670582,1724410243573,-500.0,0.00010999,2]
[335670583,1724410243584,-500.0,0.00010999,2]
[335670584,1724410243594,-500.0,0.00010999,2]
[335670585,1724410243605,-425.82583626,0.00010999,2]
[335670586,1724410243615,-207.314,0.00010999,2]
[335670587,1724410243625,-528.68452593,0.00010999,2]
[335670588,1724410243636,-750.7,0.00010999,2]
[335670589,1724410243647,-750.7,0.00010999,2]
[335670590,1724410243657,-309.67588729,0.00010999,2]
[335670591,1724410243667,-500.0,0.00010999,2]
[335670592,1724410243677,-500.0,0.00010999,2]
[335670593,1724410243688,-500.0,0.00010999,2]
[335670594,1724410243698,-500.0,0.00010999,2]
[335670595,1724410243708,-500.0,0.00010999,2]
[335670596,1724410243719,-500.0,0.00010999,2]
[335670597,1724410243730,-500.0,0.00010999,2]
[335670598,1724410243740,-645.29301092,0.00010999,2]
[335670599,1724410243750,-500.0,0.00010999,2]
[335670600,1724410243761,-336.84920887,0.00010999,2]
[335670601,1724410243771,-500.0,0.00010999,2]
[335670602,1724410243781,-500.0,0.00010999,2]
[335670603,1724410243792,-500.0,0.00010999,2]
[335670604,1724410243802,-552.33148862,0.00010999,2]
[335670605,1724410243812,-500.0,0.00010999,2]
[335670606,1724410243822,-500.0,0.00010999,2]
[335670607,1724410243832,-500.0,0.00010999,2]
[335670608,1724410243842,-500.0,0.00010999,2]
[335670609,1724410243853,-271.20133586,0.00010999,2]
[335670610,1724410243868,-500.0,0.00010999,2]
[335670611,1724410243878,-500.0,0.00010999,2]
[335670612,1724410243888,-500.0,0.00010999,2]
[335670613,1724410243899,-500.0,0.00010999,2]
[335670614,1724410243910,-500.0,0.00010999,2]
[335670615,1724410243920,-500.0,0.00010999,2]
[335670616,1724410243931,-500.0,0.00010999,2]
[335670617,1724410243942,-165.73479037,0.00010999,2]
[335670618,1724410243952,-500.0,0.00010999,2]
[335670619,1724410243963,-10799.42774916,0.00011,2]
[335670620,1724410243976,-612.24,0.00011,2]
[335670621,1724410244002,-500.0,0.00010999,2]
[335670629,1724410404147,1000.0,0.00026849,120]
[335670630,1724410404540,1000.0,0.00026849,120]
[335670631,1724410439842,500.0,0.00024932,120]
[335670632,1724410451627,500.0,0.00027,120]
[335670633,1724410471301,200.0,0.00026032,120]
[335670634,1724410491285,8873.0,0.00027,120]
[335670635,1724410557468,3804.81,0.00027,120]
[335670636,1724410560918,500.0,0.00027,120]
[335670638,1724410821450,253.32919331,0.00010097,2]
[335670639,1724410832077,525.806,0.00025,60]
[335670640,1724410850422,218.44,8.219e-05,2]
[335670641,1724410888190,1000.0,0.00025,60]
[335670642,1724410890048,1000.0,0.00025,60]
[335670643,1724410891833,1000.0,0.00025,60]
[335670644,1724410893103,1000.0,0.00025,60]
[335670645,1724410896486,1000.0,0.00025,60]
[335670646,1724410945410,2000.0,0.00025,60]
[335670647,1724411003454,2000.0,0.00025,60]
[335670648,1724411006261,1000.0,0.00026849,120]
[335670649,1724411006680,1000.0,0.00026849,120]
[335670650,1724411042201,500.0,0.00024932,120]
[335670651,1724411069079,200.0,0.00026086,120]
[335670652,1724411096198,1252.96,0.00010008,2]
[335670653,1724411101601,801.98,0.00010008,2]
[335670654,1724411130434,1726.66,0.00025,60]
[335670679,1724411371649,210.53704773,0.00010097,2]
[335670682,1724411391513,500.0,0.00027,120]
[335670693,1724411432164,-876.88425,0.00010194,2]
[335670694,1724411432223,-299.6900001,0.00010194,2]
[335670695,1724411432239,-688.72550017,0.00010194,2]
[335670696,1724411432249,-344.97449983,0.0001026,2]
[335670697,1724411432281,-388.88750137,0.0001026,2]
[335670698,1724411432334,-8756.9379988,0.0001026,2]
[335670699,1724411432344,-229.57,0.00010294,2]
[335670700,1724411432354,-264.75871737,0.00010471,2]
[335670701,1724411432365,-218.44,0.00010479,2]
[335670702,1724411432375,-155.0,0.00010505,2]
[335670703,1724411432384,-419.90727343,0.00010505,2]
[335670704,1724411432394,-284.30977716,0.00010505,2]
[335670705,1724411432404,-1000.0,0.0001059,2]
[335670706,1724411432414,-155.0,0.00010713,2]
[335670707,1724411432423,-155.0,0.00010713,2]
[335670708,1724411432433,-155.0,0.00010852,2]
[335670709,1724411432442,-333.43189462,0.0001089,2]
[335670710,1724411432453,-802.20259,0.0001089,2]
[335670711,1724411432462,-401.62337545,0.0001089,2]
[335670712,1724411432472,-531.49545144,0.0001089,2]
[335670713,1724411432482,-419.11,0.00010899,2]
[335670714,1724411432491,-2806.85601654,0.00010899,2]
[335670715,1724411432500,-369.06122811,0.00010899,2]
[335670716,1724411432509,-174.68941142,0.000109,2]
[335670717,1724411432519,-1605.8427859,0.000109,2]
[335670718,1724411432528,-500.0,0.00010912,2]
[335670719,1724411432538,-499.99,0.00010959,2]
[335670720,1724411432547,-200.0,0.00010959,2]
[335670721,1724411432557,-206.73,0.00010959,2]
[335670722,1724411432566,-5800.0,0.00010975,2]
[335670723,1724411432576,-543.18989785,0.00010979,2]
[335670724,1724411432586,-165.0,0.00010979,2]
[335670725,1724411432595,-5800.0,0.00010983,2]
[335670726,1724411432605,-2344.1674649,0.00010989,2]
[335670727,1724411432614,-5800.0,0.00010992,2]
[335670728,1724411432623,-150.0,0.00010994,2]
[335670729,1724411432633,-5892.0389494,0.00010995,2]
[335670730,1724411432643,-145939.54863859,0.00010995,2]
[335670731,1724411432671,-573.62001041,0.00010995,2]
[335670732,1724411432683,-2780.08729667,0.00010995,2]
[335670742,1724411438254,-880.19415355,0.00010995,2]
[335670743,1724411438266,-1147.71930144,0.00010995,2]
[335670744,1724411438278,-332.82189371,0.00010995,2]
[335670745,1724411438305,-14563.65200043,0.00010995,2]
[335670746,1724411438315,-500.0,0.00010997,2]
[335670747,1724411438324,-500.0,0.00010997,2]
[335670748,1724411438333,-529.79335145,0.00010997,2]
[335670749,1724411438342,-500.0,0.00010997,2]
[335670750,1724411438351,-500.0,0.00010997,2]
[335670751,1724411438361,-500.0,0.00010997,2]
[335670752,1724411438370,-500.0,0.00010997,2]
[335670753,1724411438379,-500.0,0.00010997,2]
[335670754,1724411438388,-500.0,0.00010997,2]
[335670755,1724411438397,-500.0,0.00010997,2]
[335670756,1724411438407,-500.0,0.00010997,2]
[335670757,1724411438416,-500.0,0.00010997,2]
[335670758,1724411438426,-500.0,0.00010997,2]
[335670759,1724411438435,-500.0,0.00010997,2]
[335670760,1724411438444,-500.0,0.00010997,2]
[335670761,1724411438454,-500.0,0.00010997,2]
[335670762,1724411438463,-500.0,0.00010997,2]
[335670763,1724411438472,-764.73,0.00010997,2]
[335670764,1724411438481,-998.49,0.00010997,2]
[335670765,1724411438491,-500.0,0.00010997,2]
[335670766,1724411438510,-500.0,0.00010997,2]
[335670767,1724411438519,-500.0,0.00010997,2]
[335670768,1724411438529,-73.86514236,0.00010997,2]
[335670769,1724411438545,-426.13485764,0.00010997,2]
[335670770,1724411438554,-601.5541219,0.00010997,2]
[335670771,1724411438564,-500.0,0.00010997,2]
[335670772,1724411438574,-500.0,0.00010997,2]
[335670773,1724411438583,-500.0,0.00010997,2]
[335670774,1724411438591,-500.0,0.00010997,2]
[335670775,1724411438601,-500.0,0.00010997,2]
[335670776,1724411438610,-500.0,0.00010997,2]
[335670777,1724411438619,-500.0,0.00010997,2]
[335670778,1724411438629,-500.0,0.00010997,2]
[335670779,1724411438638,-500.0,0.00010997,2]
[335670780,1724411438647,-500.0,0.00010997,2]
[335670781,1724411438656,-500.0,0.00010998,2]
[335670782,1724411438666,-500.0,0.00010998,2]
[335670783,1724411438675,-524.20875831,0.00010998,2]
[335670784,1724411438684,-500.0,0.00010998,2]
[335670785,1724411438694,-500.0,0.00010998,2]
[335670786,1724411438703,-576.38863292,0.00010998,2]
[335670787,1724411438712,-24.11362923,0.00010998,2]
[335670788,1724411438724,-475.88637077,0.00010998,2]
[335670789,1724411438734,-500.0,0.00010998,2]
[335670790,1724411438748,-500.0,0.00010998,2]
[335670791,1724411438757,-500.0,0.00010998,2]
[335670792,1724411438766,-500.0,0.00010998,2]
[335670793,1724411438776,-500.0,0.00010998,2]
[335670794,1724411438785,-500.0,0.00010998,2]
[335670795,1724411438794,-500.0,0.00010998,2]
[335670796,1724411438803,-500.0,0.00010998,2]
[335670797,1724411438812,-500.0,0.00010998,2]
[335670798,1724411438822,-500.0,0.00010998,2]
[335670799,1724411438831,-500.0,0.00010998,2]
[335670800,1724411438840,-500.0,0.00010998,2]
[335670801,1724411438850,-500.0,0.00010998,2]
[335670802,1724411438859,-326.9839338,0.00010998,2]
[335670803,1724411438882,-173.0160662,0.00010998,2]
[335670804,1724411438892,-561.3701654,0.00010998,2]
[335670805,1724411438902,-196.80014843,0.00010998,2]
[335670806,1724411438911,-518.41497671,0.00010998,2]
[335670807,1724411438921,-500.0,0.00010998,2]
[335670808,1724411438930,-500.0,0.00010998,2]
[335670809,1724411438939,-500.0,0.00010998,2]
[335670810,1724411438948,-500.0,0.00010998,2]
[335670811,1724411438958,-500.0,0.00010998,2]
[335670812,1724411438968,-500.0,0.00010998,2]
[335670813,1724411438978,-408.84192599,0.00010998,2]
[335670871,1724411440225,-123.5124948,0.00010998,2]
[335670872,1724411440237,-500.0,0.00010998,2]
[335670873,1724411440248,-548.68914803,0.00010998,2]
[335670874,1724411440258,-500.0,0.00010998,2]
[335670875,1724411440268,-500.0,0.00010998,2]
[335670876,1724411440277,-487.79835716,0.00010998,2]
[335670877,1724411440290,-12.20164284,0.00010998,2]
[335670878,1724411440299,-500.0,0.00010998,2]
[335670879,1724411440308,-500.0,0.00010998,2]
[335670880,1724411440318,-500.0,0.00010998,2]
[335670881,1724411440327,-500.0,0.00010998,2]
[335670882,1724411440336,-500.0,0.00010998,2]
[335670883,1724411440345,-376.57995716,0.00010998,2]
[335670884,1724411440427,-123.42004284,0.00010998,2]
[335670885,1724411440437,-500.0,0.00010998,2]
[335670886,1724411440446,-533.72399599,0.00010998,2]
[335670887,1724411440455,-412.34703352,0.00010998,2]
[335670888,1724411440465,-327.82600187,0.00010998,2]
[335670889,1724411440474,-500.0,0.00010998,2]
[335670890,1724411440483,-507.9248035,0.00010998,2]
[335670891,1724411440494,-500.0,0.00010998,2]
[335670892,1724411440503,-500.0,0.00010998,2]
[335670893,1724411440512,-500.0,0.00010998,2]
[335670894,1724411440522,-500.0,0.00010998,2]
[335670895,1724411440531,-500.0,0.00010998,2]
[335670896,1724411440541,-500.0,0.00010998,2]
[335670897,1724411440550,-500.0,0.00010998,2]
[335670898,1724411440559,-500.0,0.00010998,2]
[335670899,1724411440569,-500.0,0.00010998,2]